Workbook

Sheet Sumcost Exhibits
B3: Sumcost | C3: AVISTA UTILITIES | I3: Natural Gas Utility
B4: Company Base Case UG-12____ | C4: Cost of Service General Summary | I4: Washington Jurisdiction | K4: 2012-04-02
B5: UG Storage 87% Sales / 13% Throughput | C5: For the Twelve Months Ended December 31, 2011
B7: (b) | C7: (c) | D7: (d) | E7: (e) | F7: (f) | G7: (g) | H7: (h) | I7: (i) | J7: (j) | K7: (k)
G8: General | H8: Large General | I8: High Load Factor | J8: Interruptible | K8: Transportation
F9: System | G9: Service | H9: Service | I9: Lg. Gen. Service | J9: Service | K9: Service
B10: Description | F10: Total | G10: Sch 101 | H10: Sch 111/112 | I10: Sch 121/122 | J10: Sch 131/132 | K10: Sch 146
B11: Plant In Service
A12: 1 | B12: Production Plant
A13: 2 | B13: Underground Storage Plant | F13: =SUM(G13:K13) -> 24693000 | G13: 16810767.43 | H13: 6436148.152 | I13: 884854.2152 | J13: 90802.45504 | K13: 470427.7466
A14: 3 | B14: Distribution Plant | F14: =SUM(G14:K14) -> 302336000 | G14: 240240570.9 | H14: 48321633.1 | I14: 3989080.755 | J14: 261845.2958 | K14: 9522869.977
A15: 4 | B15: Intangible Plant | F15: =SUM(G15:K15) -> 6528000 | G15: 5139664.372 | H15: 1085497.576 | I15: 95595.40583 | J15: 6828.823607 | K15: 200413.8233
A16: 5 | B16: General Plant | F16: =SUM(G16:K16) -> 45975000 | G16: 36137270.02 | H16: 7698060.396 | I16: 685196.6041 | J16: 49576.58295 | K16: 1404896.394
A17: 6 | B17: Total Plant In Service | F17: =SUM(F13:F16) -> 379532000 | G17: 298328272.7 | H17: 63541339.23 | I17: 5654726.98 | J17: 409053.1574 | K17: 11598607.94
B19: Accum Depreciation
A20: 7 | B20: Production Plant
A21: 8 | B21: Underground Storage Plant | F21: =SUM(G21:K21) -> -9074000 | G21: -6177495.795 | H21: -2365107.858 | I21: -325159.6464 | J21: -33367.41089 | K21: -172869.2898
A22: 9 | B22: Distribution Plant | F22: =SUM(G22:K22) -> -110235000 | G22: -87733970.82 | H22: -17757100.1 | I22: -1515678.163 | J22: -78160.12685 | K22: -3150090.796
A23: 10 | B23: Intangible Plant | F23: =SUM(G23:K23) -> -2644000 | G23: -2078838.525 | H23: -442178.8491 | I23: -39285.66141 | J23: -2836.26681 | K23: -80860.69805
A24: 11 | B24: General Plant | F24: =SUM(G24:K24) -> -13114000 | G24: -10307866.43 | H24: -2195809.984 | I24: -195446.8356 | J24: -14141.32265 | K24: -400735.4282
A25: 12 | B25: Total Accumulated Depreciation | F25: =SUM(F21:F24) -> -135067000 | G25: -106298171.6 | H25: -22760196.79 | I25: -2075570.307 | J25: -128505.1272 | K25: -3804556.212
A27: 13 | B27: Net Plant | F27: =F17+F25 -> 244465000 | G27: 192030101.1 | H27: 40781142.44 | I27: 3579156.673 | J27: 280548.0302 | K27: 7794051.729
A28: 14 | B28: Accumlulated Deferred FIT | F28: =SUM(G28:K28) -> -47851000 | G28: -37612918.48 | H28: -8011225.992 | I28: -712942.099 | J28: -51572.99683 | K28: -1462340.431
A29: 15 | B29: Miscellaneous Rate Base | F29: =SUM(G29:K29) -> 13390000 | G29: 9009274.237 | H29: 3584404.016 | I29: 501006.3314 | J29: 51869.1085 | K29: 243446.3073
A30: 16 | B30: Total Rate Base | F30: =SUM(F27:F29) -> 210004000 | G30: 163426456.9 | H30: 36354320.46 | I30: 3367220.905 | J30: 280844.1419 | K30: 6575157.605
A32: 17 | B32: Revenue From Retail Rates | F32: =SUM(G32:K32) -> 144083000 | G32: 105607336.8 | H32: 32015273.8 | I32: 3894069.703 | J32: 365057.5347 | K32: 2201262.135
A33: 18 | B33: Other Operating Revenues | F33: =SUM(G33:K33) -> 1635000 | G33: 1272613.586 | H33: 282839.687 | I33: 26173.12232 | J33: 2179.461793 | K33: 51194.14283
A34: 19 | B34: Total Revenues | F34: =SUM(F32:F33) -> 145718000 | G34: 106879950.4 | H34: 32298113.49 | I34: 3920242.825 | J34: 367236.9965 | K34: 2252456.278
B36: Operating Expenses
A37: 20 | B37: Purchased Gas Costs | F37: =SUM(G37:K37) -> 81056000 | G37: 56438315.47 | H37: 21453894.81 | I37: 2844838.648 | J37: 278541.3836 | K37: 40409.68547
A38: 21 | B38: Underground Storage Expenses | F38: 785000 | G38: 534420.7846 | H38: 204607.6337 | I38: 28129.857 | J38: 2886.64509 | K38: 14955.07962
A39: 22 | B39: Distribution Expenses | F39: 9663000 | G39: 7789701.733 | H39: 1453812.668 | I39: 112551.2742 | J39: 8897.662172 | K39: 298036.6632
A40: 23 | B40: Customer Accounting Expenses | F40: 6071000 | G40: 5805563.513 | H40: 233639.1301 | I40: 18706.59978 | J40: 1701.159436 | K40: 11389.59728
A41: 24 | B41: Customer Information Expenses | F41: 857000 | G41: 842754.8052 | H41: 13874.97687 | I41: 150.4010278 | J41: 5.784654915 | K41: 214.0322318
A42: 25 | B42: Sales Expenses | F42: 3000 | G42: 2950.133507 | H42: 48.57051412 | I42: 0.5264913458 | J42: 0.02024966715 | K42: 0.7492376844
A43: 26 | B43: Admin & General Expenses | F43: 12161000.02 | G43: 8928082.998 | H43: 2071398.582 | I43: 241605.17 | J43: 23217.17436 | K43: 896696.0927
A44: 27 | B44: Total O&M Expenses | F44: =SUM(F37:F43) -> 110596000 | G44: 80341789.44 | H44: 25431276.37 | I44: 3245982.477 | J44: 315249.8296 | K44: 1261701.9
A46: 28 | B46: Taxes Other Than Income Taxes | F46: =SUM(G46:K46) -> 7955000 | G46: 5962049.765 | H46: 1634181.563 | I46: 185418.3575 | J46: 16592.57405 | K46: 156757.7405
A47: 29 | B47: Depreciation Expense
A48: 30 | B48: Underground Storage Plant Depr | F48: =SUM(G48:K48) -> 367000 | G48: 249850.2267 | H48: 95657.32685 | I48: 13151.15608 | J48: 1349.552545 | K48: 6991.737861
A49: 31 | B49: Distribution Plant Depreciation | F49: =SUM(G49:K49) -> 7552000 | G49: 5980991.607 | H49: 1228987.287 | I49: 101682.4739 | J49: 6293.34146 | K49: 234045.2913
A50: 32 | B50: General Plant Depreciation | F50: =SUM(G50:K50) -> 3529000 | G50: 2773864.62 | H50: 590896.2509 | I50: 52595.08028 | J50: 3805.454295 | K50: 107838.5943
A51: 33 | B51: Amortization of Intangible Plant | F51: =SUM(G51:K51) -> 639000 | G51: 502464.4606 | H51: 106819.1602 | I51: 9484.132287 | J51: 684.1758175 | K51: 19548.0711
A52: 34 | B52: Total Depr & Amort Expense | F52: =SUM(F48:F51) -> 12087000 | G52: 9507170.914 | H52: 2022360.025 | I52: 176912.8425 | J52: 12132.52412 | K52: 368423.6946
A53: 35 | B53: Income Tax | F53: =SUM(G53:K53) -> 4019000 | G53: 2824737.991 | H53: 968319.8418 | I53: 96316.28827 | J53: 6781.42357 | K53: 122844.4556
A54: 36 | B54: Total Operating Expenses | F54: =F44+F46+F52+F53 -> 134657000 | G54: 98635748.11 | H54: 30056137.8 | I54: 3704629.965 | J54: 350756.3513 | K54: 1909727.79
A56: 37 | B56: Net Income | F56: =F34-F54 -> 11060999.98 | G56: 8244202.306 | H56: 2241975.685 | I56: 215612.8602 | J56: 16480.64523 | K56: 342728.4871
A58: 38 | B58: Rate of Return | F58: =F56/F30 -> 0.05267042525 | G58: 0.05044594653 | H58: 0.06167013043 | I58: 0.0640328824 | J58: 0.05868253161 | K58: 0.0521247562
A59: 39 | B59: Return Ratio | F59: =F58/$F58 -> 1 | G59: 0.9577660764 | H59: 1.170868284 | I59: 1.215727462 | J59: 1.114145772 | K59: 0.9896399346
A61: 40 | B61: Interest Expense | F61: =SUM(G61:K61) -> 6237000 | G61: 4853673.319 | H61: 1079702.752 | I61: 100004.556 | J61: 8340.912139 | K61: 195278.4613
A63: File: WA 2012 Gas Case / Gas COS Base Case / Summary Exhibits | K63: Page 1 of 4
B64: =$B$3 -> Sumcost | C64: =$C$3 -> AVISTA UTILITIES | I64: =$I$3 -> Natural Gas Utility
B65: =$B$4 -> Company Base Case UG-12____ | C65: Summary by Function with Margin Analysis | I65: =$I$4 -> Washington Jurisdiction | K65: =$K$4 -> 2012-04-02
B66: =$B$5 -> UG Storage 87% Sales / 13% Throughput | C66: =$C$5 -> For the Twelve Months Ended December 31, 2011
B68: =$B$7 -> (b) | C68: =$C$7 -> (c) | D68: =$D$7 -> (d) | E68: =$E$7 -> (e) | F68: =$F$7 -> (f) | G68: =$G$7 -> (g) | H68: =$H$7 -> (h) | I68: =$I$7 -> (i) | J68: =$J$7 -> (j) | K68: =$K$7 -> (k)
F69: =F8 ->  | G69: General | H69: Large General | I69: High Load Factor | J69: Interruptible | K69: Transportation
F70: System | G70: Service | H70: Service | I70: Lg. Gen. Service | J70: Service | K70: Service
B71: =$B$10 -> Description | F71: Total | G71: Sch 101 | H71: Sch 111/112 | I71: Sch 121/122 | J71: Sch 131/132 | K71: Sch 146
B73: Functional Cost Components at Current Rates
A74: 1 | B74: Production | F74: =SUM(G74:K74) -> 85018284.08 | G74: 59197206.1 | H74: 22502631.81 | I74: 2983903.726 | J74: 292157.4033 | K74: 42385.04391
A75: 2 | B75: Underground Storage | F75: =SUM(G75:K75) -> 3122051.6 | G75: 2003079.401 | H75: 918253.6842 | I75: 130623.6976 | J75: 12386.52016 | K75: 57708.29747
A76: 3 | B76: Distribution | F76: =SUM(G76:K76) -> 36792216.62 | G76: 30090389.36 | H76: 5285910.815 | I76: 425418.8108 | J76: 29371.28149 | K76: 961126.3526
A77: 4 | B77: Common | F77: =SUM(G77:K77) -> 19150447.69 | G77: 14316661.96 | H77: 3308477.493 | I77: 354123.4691 | J77: 31142.3298 | K77: 1140042.441
A78: 5 | B78: Total Current Rate Revenue | F78: =SUM(F74:F77) -> 144083000 | G78: 105607336.8 | H78: 32015273.8 | I78: 3894069.703 | J78: 365057.5347 | K78: 2201262.135
A79: 6 | B79: Exclude Cost of Gas w / Revenue Exp. | F79: =SUM(G79:K79) -> 83918005.51 | G79: 58447653.76 | H79: 22219939.89 | I79: 2945496.449 | J79: 288236.2303 | K79: 16679.1838
A80: 7 | B80: Total Margin Revenue at Current Rates | F80: =F78-F79 -> 60164994.49 | G80: 47159683.07 | H80: 9795333.907 | I80: 948573.2537 | J80: 76821.30441 | K80: 2184582.951
B82: Margin per Therm at Current Rates
A83: 8 | B83: Production | F83: 0.005475364051 | G83: 0.006297457088 | H83: 0.00620351937 | I83: 0.006130453071 | J83: 0.00609914833 | K83: 0.0008729045638
A84: 9 | B84: Underground Storage | F84: 0.01553640098 | G84: 0.0168291202 | H84: 0.02015057459 | I84: 0.02084975887 | J84: 0.01926648597 | K84: 0.001959624615
A85: 10 | B85: Distribution | F85: 0.1830907056 | G85: 0.2528081409 | H85: 0.1159964201 | I85: 0.0679040617 | J85: 0.04568525908 | K85: 0.03263736658
A86: 11 | B86: Common | F86: 0.09529920463 | G86: 0.1202832124 | H86: 0.07260272802 | I86: 0.05652411527 | J86: 0.04844001805 | K86: 0.03871289446
A87: 12 | B87: Total Current Margin Melded Rate per Therm | F87: =SUM(F83:F86) -> 0.2994016753 | G87: 0.3962179305 | H87: 0.2149532421 | I87: 0.1514083889 | J87: 0.1194909114 | K87: 0.07418279022
B89: Functional Cost Components at Uniform Current Return
A90: 13 | B90: Production | F90: =SUM(G90:K90) -> 85018284.08 | G90: 59197206.1 | H90: 22502631.81 | I90: 2983903.726 | J90: 292157.4033 | K90: 42385.04391
A91: 14 | B91: Underground Storage | F91: =SUM(G91:K91) -> 3057369.885 | G91: 2081429.315 | H91: 796893.2707 | I91: 109558.4429 | J91: 11242.72836 | K91: 58246.12745
A92: 15 | B92: Distribution | F92: =SUM(G92:K92) -> 36852457.41 | G92: 30616256.6 | H92: 4859892.83 | I92: 382104.332 | J92: 27620.32956 | K92: 966583.3189
A93: 16 | B93: Common | F93: =SUM(G93:K93) -> 19154888.62 | G93: 14411433.44 | H93: 3226778.893 | I93: 344939.5373 | J93: 30790.60262 | K93: 1140946.15
A94: 17 | B94: Total Uniform Current Cost | F94: =SUM(F90:F93) -> 144083000 | G94: 106306325.5 | H94: 31386196.8 | I94: 3820506.038 | J94: 361811.0638 | K94: 2208160.64
A95: 18 | B95: Exclude Cost of Gas w / Revenue Exp. | F95: =SUM(G95:K95) -> 83918005.51 | G95: 58447653.76 | H95: 22219939.89 | I95: 2945496.449 | J95: 288236.2303 | K95: 16679.1838
A96: 19 | B96: Total Uniform Current Margin | F96: =F94-F95 -> 60164994.49 | G96: 47858671.7 | H96: 9166256.909 | I96: 875009.5885 | J96: 73574.83351 | K96: 2191481.456
B98: Margin per Therm at Uniform Current Return
A99: 20 | B99: Production | F99: 0.005475364051 | G99: 0.006297457088 | H99: 0.00620351937 | I99: 0.006130453071 | J99: 0.00609914833 | K99: 0.0008729045638
A100: 21 | B100: Underground Storage | F100: 0.01521452255 | G100: 0.01748738673 | H100: 0.01748738673 | I100: 0.01748738673 | J100: 0.01748738673 | K100: 0.001977887931
A101: 22 | B101: Distribution | F101: 0.1833904844 | G101: 0.2572262797 | H101: 0.1066476886 | I101: 0.06099033584 | J101: 0.04296175883 | K101: 0.03282267105
A102: 23 | B102: Common | F102: 0.09532130422 | G102: 0.1210794467 | H102: 0.07080989697 | I102: 0.0550582039 | J102: 0.04789292761 | K102: 0.03874358209
A103: 24 | B103: Total Current Uniform Margin Melded Rate per Therm | F103: =SUM(F99:F102) -> 0.2994016753 | G103: 0.4020905703 | H103: 0.2011484917 | I103: 0.1396663795 | J103: 0.1144412215 | K103: 0.07441704563
A105: 25 | B105: Margin to Cost Ratio at Current Rates | F105: =F80/F96 -> 1 | G105: 0.985394734 | H105: 1.068629649 | I105: 1.084071839 | J105: 1.044124747 | K105: 0.9968521269
B108: Functional Cost Components at Proposed Rates
A109: 26 | B109: Production | F109: =SUM(G109:K109) -> 85007207.75 | G109: 59189493.79 | H109: 22499700.13 | I109: 2983514.978 | J109: 292119.3405 | K109: 42379.52191
A110: 27 | B110: Underground Storage | F110: =SUM(G110:K110) -> 4484516.586 | G110: 2833170.293 | H110: 1351375.705 | I110: 208824.6729 | J110: 21406.92396 | K110: 69738.99166
A111: 28 | B111: Distribution | F111: =SUM(G111:K111) -> 44178178.42 | G111: 35659606.51 | H111: 6806053.625 | I111: 586195.6026 | J111: 43178.63898 | K111: 1083144.044
A112: 29 | B112: Common | F112: =SUM(G112:K112) -> 20501097.24 | G112: 15319184.24 | H112: 3599700.344 | I112: 388178.4502 | J112: 33912.63129 | K112: 1160121.577
A113: 30 | B113: Total Proposed Rate Revenue | F113: =SUM(F109:F112) -> 154171000 | G113: 113001454.8 | H113: 34256829.8 | I113: 4166713.703 | J113: 390617.5347 | K113: 2355384.135
A114: 31 | B114: Exclude Cost of Gas w / Revenue Exp. | F114: =SUM(G114:K114) -> 83907072.53 | G114: 58440039.09 | H114: 22217045.04 | I114: 2945112.705 | J114: 288198.6784 | K114: 16677.0108
A115: 32 | B115: Total Margin Revenue at Proposed Rates | F115: =F113-F114 -> 70263927.47 | G115: 54561415.73 | H115: 12039784.76 | I115: 1221600.998 | J115: 102418.8563 | K115: 2338707.124
B117: Margin per Therm at Proposed Rates
A118: 33 | B118: Production | F118: 0.005474650712 | G118: 0.006296636644 | H118: 0.006202711165 | I118: 0.006129654385 | J118: 0.006098353723 | K118: 0.0008727908403
A119: 34 | B119: Underground Storage | F119: 0.02231649467 | G119: 0.02380323185 | H119: 0.02965520031 | I119: 0.03333196162 | J119: 0.0332971807 | K119: 0.002368155893
A120: 35 | B120: Distribution | F120: 0.2198457881 | G120: 0.2995986099 | H120: 0.1493551222 | I120: 0.09356676611 | J120: 0.06716177193 | K120: 0.036780772
A121: 36 | B121: Common | F121: 0.1020205006 | G121: 0.1287060277 | H121: 0.07899345413 | I121: 0.06195986817 | J121: 0.05274905513 | K121: 0.03939473002
A122: 37 | B122: Total Proposed Margin Melded Rate per Therm | F122: =SUM(F118:F121) -> 0.3496574341 | G122: 0.4584045062 | H122: 0.2642064878 | I122: 0.1949882503 | J122: 0.1593063615 | K122: 0.07941644875
B124: Functional Cost Components at Uniform Proposed Return
A125: 38 | B125: Production | F125: =SUM(G125:K125) -> 85007207.75 | G125: 59189493.79 | H125: 22499700.13 | I125: 2983514.978 | J125: 292119.3405 | K125: 42379.52191
A126: 39 | B126: Underground Storage | F126: =SUM(G126:K126) -> 4351948.321 | G126: 2962766.415 | H126: 1134320.825 | I126: 155948.642 | J126: 16003.22325 | K126: 82909.21482
A127: 40 | B127: Distribution | F127: =SUM(G127:K127) -> 44302691.9 | G127: 36529426.92 | H127: 6044114.21 | I127: 477471.6518 | J127: 34906.48648 | K127: 1216772.635
A128: 41 | B128: Common | F128: =SUM(G128:K128) -> 20509152.04 | G128: 15475942.75 | H128: 3453581.201 | I128: 365125.8041 | J128: 32250.94039 | K128: 1182251.343
A129: 42 | B129: Total Uniform Proposed Cost | F129: =SUM(F125:F128) -> 154171000 | G129: 114157629.9 | H129: 33131716.36 | I129: 3982061.075 | J129: 375279.9906 | K129: 2524312.715
A130: 43 | B130: Exclude Cost of Gas w / Revenue Exp. | F130: =SUM(G130:K130) -> 83907072.53 | G130: 58440039.09 | H130: 22217045.04 | I130: 2945112.705 | J130: 288198.6784 | K130: 16677.0108
A131: 44 | B131: Total Uniform Proposed Margin | F131: =F129-F130 -> 70263927.49 | G131: 55717590.78 | H131: 10914671.32 | I131: 1036948.37 | J131: 87081.31222 | K131: 2507635.704
B133: Margin per Therm at Uniform Proposed Return
A134: 45 | B134: Production | F134: 0.005474650712 | G134: 0.006296636644 | H134: 0.006202711165 | I134: 0.006129654385 | J134: 0.006098353723 | K134: 0.0008727908403
A135: 46 | B135: Underground Storage | F135: 0.02165678945 | G135: 0.02489204976 | H135: 0.02489204976 | I135: 0.02489204976 | J135: 0.02489204976 | K135: 0.002815382628
A136: 47 | B136: Distribution | F136: 0.2204654099 | G136: 0.3069065141 | H136: 0.1326347787 | I136: 0.07621257849 | J136: 0.05429493702 | K136: 0.04131845352
A137: 48 | B137: Common | F137: 0.1020605841 | G137: 0.1300230538 | H137: 0.0757869495 | I137: 0.05828027465 | J137: 0.05016439504 | K137: 0.04014619968
A138: 49 | B138: Total Proposed Uniform Margin Melded Rate per Therm | F138: =SUM(F134:F137) -> 0.3496574342 | G138: 0.4681182543 | H138: 0.2395164891 | I138: 0.1655145573 | J138: 0.1354497355 | K138: 0.08515282667
A140: 50 | B140: Margin to Cost Ratio at Proposed Rates | F140: =F115/F131 -> 0.9999999998 | G140: =G115/G131 -> 0.9792493712 | H140: 1.103082668 | I140: 1.178073116 | J140: 1.176128996 | K140: 0.9326343218
A142: 51 | B142: Current Margin to Proposed Cost Ratio | F142: =F80/F131 -> 0.8562714417 | G142: =G80/G131 -> 0.8464056398 | H142: 0.8974465303 | I142: 0.9147738507 | J142: 0.882178994 | K142: 0.8711723747
A144: =$A$63 -> File: WA 2012 Gas Case / Gas COS Base Case / Summary Exhibits | K144: Page 2 of 4
B145: =B3 -> Sumcost | C145: =C3 -> AVISTA UTILITIES | I145: =I3 -> Natural Gas Utility
B146: =B4 -> Company Base Case UG-12____ | C146: Summary by Classification with Unit Cost Analysis | I146: =I4 -> Washington Jurisdiction | K146: =K4 -> 2012-04-02
B147: =B5 -> UG Storage 87% Sales / 13% Throughput | C147: =C5 -> For the Twelve Months Ended December 31, 2011 | K147: =K5 -> 
B149: =B7 -> (b) | C149: (c) | D149: (d) | E149: (e) | F149: (f) | G149: (g) | H149: (h) | I149: (i) | J149: (j) | K149: (k)
F150: =F8 ->  | G150: General | H150: Large General | I150: High Load Factor | J150: Interruptible | K150: Transportation
F151: System | G151: Service | H151: Service | I151: Lg. Gen. Service | J151: Service | K151: Service
B152: =B10 -> Description | F152: Total | G152: Sch 101 | H152: Sch 111/112 | I152: Sch 121/122 | J152: Sch 131/132 | K152: Sch 146
B154: Cost by Classification at Current Return by Schedule
A155: 1 | B155: Commodity | F155: =SUM(G155:K155) -> 82692519.36 | G155: 56140404.66 | H155: 21826351.08 | I155: 3010018.362 | J155: 289184.1315 | K155: 1426561.119
A156: 2 | B156: Demand | F156: =SUM(G156:K156) -> 32126883.05 | G156: 22095232.89 | H156: 8570037.6 | I156: 829529.2269 | J156: 65486.79829 | K156: 566596.5323
A157: 3 | B157: Customer | F157: =SUM(G157:K157) -> 29263597.58 | G157: 27371699.26 | H157: 1618885.115 | I157: 54522.11417 | J157: 10386.60494 | K157: 208104.483
A158: 4 | B158: Total Current Rate Revenue | F158: =SUM(F155:F157) -> 144083000 | G158: 105607336.8 | H158: 32015273.8 | I158: 3894069.703 | J158: 365057.5347 | K158: 2201262.135
B160: Revenue per Therm at Current Rates
A161: 5 | B161: Commodity | F161: 0.4115063757 | G161: 0.4716705776 | H161: 0.4789673301 | I161: 0.4804500116 | J161: 0.4498084966 | K161: 0.04844232818
A162: 6 | B162: Demand | F162: 0.1598744035 | G162: 0.1856358415 | H162: 0.1880647852 | I162: 0.132406942 | J162: 0.1018607699 | K162: 0.01924015368
A163: 7 | B163: Customer | F163: 0.1456257116 | G163: 0.2299667286 | H163: 0.03552554792 | I163: 0.008702654682 | J163: 0.01615573831 | K163: 0.007066690327
A164: 8 | B164: Total Revenue per Therm at Current Rates | F164: =SUM(F161:F163) -> 0.7170064909 | G164: 0.8872731476 | H164: 0.7025576633 | I164: 0.6215596083 | J164: 0.5678250049 | K164: 0.07474917219
B166: Cost per Unit at Current Rates
A167: 9 | B167: Commodity Cost per Therm | F167: 0.4115063757 | G167: 0.4716705776 | H167: 0.4789673301 | I167: 0.4804500116 | J167: 0.4498084966 | K167: 0.04844232818
A168: 10 | B168: Demand Cost per Peak Day Therms | F168: 21.18399425 | G168: 22.46681149 | H168: 23.11416134 | I168: 32.69338379 | J168: 13.07382677 | K168: 4.293991954
A169: 11 | B169: Customer Cost per Customer per Month | F169: 16.46050307 | G169: 15.6565739 | H169: 56.24448859 | I169: 174.7503659 | J169: 865.5504116 | K169: 468.7037906
B171: Cost by Classification at Uniform Current Return
A172: 12 | B172: Commodity | F172: =SUM(G172:K172) -> 82551451.38 | G172: 56314743.79 | H172: 21556307.79 | I172: 2963145.328 | J172: 287471.8202 | K172: 1429782.651
A173: 13 | B173: Demand | F173: =SUM(G173:K173) -> 32018775.35 | G173: 22262323.12 | H173: 8315179.458 | I173: 807509.612 | J173: 64451.7925 | K173: 569311.3696
A174: 14 | B174: Customer | F174: =SUM(G174:K174) -> 29512773.26 | G174: 27729258.54 | H174: 1514709.551 | I174: 49851.09747 | J174: 9887.451185 | K174: 209066.6199
A175: 15 | B175: Total Uniform Current Cost | F175: =SUM(F172:F174) -> 144083000 | G175: 106306325.4 | H175: 31386196.8 | I175: 3820506.038 | J175: 361811.0638 | K175: 2208160.64
B177: Cost per Therm at Current Return
A178: 16 | B178: Commodity | F178: 0.410804373 | G178: 0.4731353094 | H178: 0.4730413779 | I178: 0.47296828 | J178: 0.4471450994 | K178: 0.04855172306
A179: 17 | B179: Demand | F179: 0.1593364225 | G179: 0.1870396707 | H179: 0.1824720627 | I179: 0.1288922378 | J179: 0.1002508808 | K179: 0.01933234253
A180: 18 | B180: Customer | F180: 0.1468656954 | G180: 0.2329708072 | H180: 0.03323947217 | I180: 0.007957081147 | J180: 0.01537933472 | K180: 0.007099362009
A181: 19 | B181: Total Cost per Therm at Current Return | F181: =SUM(F178:F180) -> 0.7170064909 | G181: 0.8931457873 | H181: 0.6887529128 | I181: 0.609817599 | J181: 0.5627753149 | K181: 0.0749834276
B183: Cost per Unit at Uniform Current Return
A184: 20 | B184: Commodity Cost per Therm | F184: 0.410804373 | G184: 0.4731353094 | H184: 0.4730413779 | I184: 0.47296828 | J184: 0.4471450994 | K184: 0.04855172306
A185: 21 | B185: Demand Cost per Peak Day Therms | F185: 21.11270962 | G185: 22.63671169 | H185: 22.42678603 | I185: 31.82554731 | J185: 12.86719754 | K185: 4.31456654
A186: 22 | B186: Customer Cost per Customer per Month | F186: 16.60066208 | G186: 15.86109731 | H186: 52.62514508 | I186: 159.7791586 | J186: 823.9542654 | K186: 470.8707656
A188: 23 | B188: Revenue to Cost Ratio at Current Rates | F188: =F158/F175 -> 1 | G188: 0.9934247692 | H188: 1.02004311 | I188: 1.019254953 | J188: 1.008972835 | K188: 0.9968759042
B191: Cost by Classification at Proposed Return by Schedule
A192: 24 | B192: Commodity | F192: =SUM(G192:K192) -> 85753071.35 | G192: 57980735.49 | H192: 22787528.63 | I192: 3183671.798 | J192: 302652.8505 | K192: 1498482.584
A193: 25 | B193: Demand | F193: =SUM(G193:K193) -> 34954022.17 | G193: 23863175.33 | H193: 9478733.095 | I193: 911182.8095 | J193: 73642.20026 | K193: 627288.7344
A194: 26 | B194: Customer | F194: =SUM(G194:K194) -> 33463906.46 | G194: 31157544 | H194: 1990568.072 | I194: 71859.09518 | J194: 14322.48398 | K194: 229612.8161
A195: 27 | B195: Total Proposed Rate Revenue | F195: =SUM(F192:F194) -> 154171000 | G195: 113001454.8 | H195: 34256829.8 | I195: 4166713.703 | J195: 390617.5347 | K195: 2355384.135
B197: Revenue per Therm at Proposed Rates
A198: 28 | B198: Commodity | F198: 0.4267367336 | G198: 0.4871323455 | H198: 0.5000598454 | I198: 0.5081680471 | J198: 0.4707582777 | K198: 0.05088459522
A199: 29 | B199: Demand | F199: 0.1739432187 | G199: 0.2004894293 | H199: 0.2080056106 | I199: 0.1454402395 | J199: 0.1145460064 | K199: 0.02130110398
A200: 30 | B200: Customer | F200: 0.1665278912 | G200: 0.261773973 | H200: 0.043681927 | I200: 0.01146993106 | J200: 0.02227776108 | K200: 0.007797057722
A201: 31 | B201: Total Revenue per Therm at Proposed Rates | F201: =SUM(F198:F200) -> 0.7672078434 | G201: 0.9493957477 | H201: 0.751747383 | I201: 0.6650782176 | J201: 0.6075820452 | K201: 0.07998275693
B203: Cost per Unit at Proposed Rates
A204: 32 | B204: Commodity Cost per Therm | F204: 0.4267367336 | G204: 0.4871323455 | H204: 0.5000598454 | I204: 0.5081680471 | J204: 0.4707582777 | K204: 0.05088459522
A205: 33 | B205: Demand Cost per Peak Day Therms | F205: 23.0481682 | G205: 24.26448565 | H205: 25.56499473 | I205: 35.91151261 | J205: 14.70197649 | K205: 4.753952107
A206: 34 | B206: Customer Cost per Customer per Month | F206: 18.82313798 | G206: 17.82207182 | H206: 69.15776923 | I206: 230.3176127 | J206: 1193.540332 | K206: 517.1459822
B208: Cost by Classification at Uniform Proposed Return
A209: 35 | B209: Commodity | F209: =SUM(G209:K209) -> 85511605.83 | G209: 58269104.34 | H209: 22304552.24 | I209: 3066015.496 | J209: 294563.2505 | K209: 1577370.5
A210: 36 | B210: Demand | F210: =SUM(G210:K210) -> 34780902.12 | G210: 24139553.99 | H210: 9022915.571 | I210: 855911.2329 | J210: 68752.44538 | K210: 693768.8728
A211: 37 | B211: Customer | F211: =SUM(G211:K211) -> 33878492.05 | G211: 31748971.52 | H211: 1804248.547 | I211: 60134.34621 | J211: 11964.29475 | K211: 253173.3422
A212: 38 | B212: Total Uniform Proposed Cost | F212: =SUM(F209:F211) -> 154171000 | G212: 114157629.9 | H212: 33131716.36 | I212: 3982061.075 | J212: 375279.9906 | K212: 2524312.715
B214: Cost per Therm at Proposed Return
A215: 39 | B215: Commodity | F215: 0.4255351182 | G215: 0.4895551122 | H215: 0.4894611929 | I215: 0.4893881046 | J215: 0.4581753922 | K215: 0.05356342492
A216: 40 | B216: Demand | F216: 0.1730817139 | G216: 0.202811459 | H216: 0.1980029444 | I216: 0.1366179579 | J216: 0.1069402873 | K216: 0.02355859764
A217: 41 | B217: Customer | F217: 0.1685910115 | G217: 0.2667429247 | H217: 0.039593247 | I217: 0.009598462155 | J217: 0.01860973978 | K217: 0.008597112288
A218: 42 | B218: Total Cost per Therm at Proposed Return | F218: =SUM(F215:F217) -> 0.7672078435 | G218: 0.9591094959 | H218: 0.7270573843 | I218: 0.6356045246 | J218: 0.5837254192 | K218: 0.08571913485
B220: Cost per Unit at Uniform Proposed Return
A221: 43 | B221: Commodity Cost per Therm | F221: 0.4255351182 | G221: 0.4895551122 | H221: 0.4894611929 | I221: 0.4893881046 | J221: 0.4581753922 | K221: 0.05356342492
A222: 44 | B222: Demand Cost per Peak Day Therms | F222: 22.93401539 | G222: 24.54551222 | H222: 24.33561391 | I222: 33.73315071 | J222: 13.72578267 | K222: 5.257776545
A223: 45 | B223: Customer Cost per Customer per Month | F223: 19.05633854 | G223: 18.16036754 | H223: 62.68452028 | I223: 192.7382891 | J223: 997.0245629 | K223: 570.2102301
A225: 46 | B225: Revenue to Cost Ratio at Proposed Rates | F225: =F195/F212 -> 0.9999999999 | G225: 0.9898721176 | H225: 1.033958803 | I225: 1.046371119 | J225: 1.040869603 | K225: 0.9330793768
A227: 47 | B227: Current Revenue to Proposed Cost Ratio | F227: =F158/F212 -> 0.9345661634 | G227: =G158/G212 -> 0.9251009936 | H227: =H158/H212 -> 0.9663029059 | I227: 0.9779030581 | J227: 0.9727604558 | K227: 0.8720243423
A229: =$A$63 -> File: WA 2012 Gas Case / Gas COS Base Case / Summary Exhibits | K229: Page 3 of 4
B231: =$B$3 -> Sumcost | C231: =$C$3 -> AVISTA UTILITIES | I231: =$I$3 -> Natural Gas Utility
B232: =$B$4 -> Company Base Case UG-12____ | C232: Customer Cost Analysis | I232: =$I$4 -> Washington Jurisdiction | K232: =$K$4 -> 2012-04-02
B233: =$B$5 -> UG Storage 87% Sales / 13% Throughput | C233: =$C$5 -> For the Twelve Months Ended December 31, 2011
B235: =$B$7 -> (b) | C235: =$C$7 -> (c) | D235: =$D$7 -> (d) | E235: =$E$7 -> (e) | F235: =$F$7 -> (f) | G235: =$G$7 -> (g) | H235: =$H$7 -> (h) | I235: =$I$7 -> (i) | J235: =$J$7 -> (j) | K235: =$K$7 -> (k)
F236: =$F$8 ->  | G236: =$G$8 -> General | H236: =$H$8 -> Large General | I236: =$I$8 -> High Load Factor | J236: =$J$8 -> Interruptible | K236: =$K$8 -> Transportation
F237: =$F$9 -> System | G237: =$G$9 -> Service | H237: =$H$9 -> Service | I237: =$I$9 -> Lg. Gen. Service | J237: =$J$9 -> Service | K237: =$K$9 -> Service
B238: =$B$10 -> Description | F238: =$F$10 -> Total | G238: =$G$10 -> Sch 101 | H238: =$H$10 -> Sch 111/112 | I238: =$I$10 -> Sch 121/122 | J238: =$J$10 -> Sch 131/132 | K238: =$K$10 -> Sch 146
B239: Meter, Services, Meter Reading & Billing Costs by Schedule at Requested Rate of Return
B241: Rate Base
A242: 1 | B242: Services | F242: =SUM(G242:Q242) -> 96617000 | G242: 94810708.32 | H242: 1560947.949 | I242: 50760.7713 | J242: 1952.337358 | K242: 192630.6193
A243: 2 | B243: Services Accum. Depr. | F243: =SUM(G243:Q243) -> -40424000 | G243: -39668257.9 | H243: -653091.6908 | I243: -21238.01628 | J243: -816.84678 | K243: -80595.54896
A244: 3 | B244: Total Services | F244: =SUM(F242:F243) -> 56193000 | G244: =SUM(G242:G243) -> 55142450.43 | H244: 907856.2582 | I244: 29522.75502 | J244: 1135.490578 | K244: 112035.0703
A246: 4 | B246: Meters | F246: =SUM(G246:Q246) -> 42154000 | G246: 36115694.54 | H246: 5107638.658 | I246: 166483.0195 | J246: 37928.32124 | K246: 726255.4614
A247: 5 | B247: Meters Accum. Depr. | F247: =SUM(G247:Q247) -> -9159000 | G247: -7847028.664 | H247: -1109760.935 | I247: -36172.55718 | J247: -8240.866685 | K247: -157796.9771
A248: 6 | B248: Total Meters | F248: =SUM(F246:F247) -> 32995000 | G248: =SUM(G246:G247) -> 28268665.88 | H248: 3997877.722 | I248: 130310.4623 | J248: 29687.45455 | K248: 568458.4844
... 24 more rows
